[Event "*** Titled Tuesday Blitz"]
[Site "Chess.com"]
[Date "2020.04.28"]
[Round "2"]
[White "TudorAnton"]
[Black "Grootneus"]
[Result "0-1"]
[WhiteElo "2499"]
[BlackElo "2194"]
[TimeControl "180+1"]
[EndTime "10:16:12 PDT"]
[Termination "Grootneus won by resignation"]

1. d4 {[%clk 0:03:00.9]} 1... d5 {[%clk 0:02:54.8]} 2. c4 {[%clk 0:02:56.3]}
2... c6 {[%clk 0:02:54.8]} 3. Nf3 {[%clk 0:02:55]} 3... Nf6 {[%clk 0:02:55.4]}
4. Nc3 {[%clk 0:02:53.3]} 4... dxc4 {[%clk 0:02:55.6]} 5. e4 {[%clk 0:02:50]}
5... b5 {[%clk 0:02:55.3]} 6. e5 {[%clk 0:02:46.9]} 6... Nd5 {[%clk 0:02:54.2]}
7. Ne4 {[%clk 0:02:47.5]} 7... e6 {[%clk 0:02:46.8]} 8. Be2 {[%clk 0:02:38.6]}
8... Be7 {[%clk 0:02:45.8]} 9. O-O {[%clk 0:02:36.4]} 9... Nd7 {[%clk
0:02:45.2]} 10. Re1 {[%clk 0:02:28.3]} 10... Bb7 {[%clk 0:02:40.6]} 11. a4
{[%clk 0:02:25.9]} 11... a6 {[%clk 0:02:34.8]} 12. Bd2 {[%clk 0:02:23.4]} 12...
O-O {[%clk 0:02:33.6]} 13. Qc1 {[%clk 0:02:22.7]} 13... c5 {[%clk 0:02:32.7]}
14. Bg5 {[%clk 0:02:21.9]} 14... cxd4 {[%clk 0:02:02.9]} 15. Bxe7 {[%clk
0:02:20.4]} 15... Qxe7 {[%clk 0:02:03.1]} 16. Nd6 {[%clk 0:02:20]} 16... Nxe5
{[%clk 0:01:56.6]} 17. Nxb7 {[%clk 0:02:19.6]} 17... Nxf3+ {[%clk 0:01:56.3]}
18. Bxf3 {[%clk 0:02:20.5]} 18... Qxb7 {[%clk 0:01:56.6]} 19. Re5 {[%clk
0:02:18.6]} 19... Qd7 {[%clk 0:01:50.3]} 20. h4 {[%clk 0:02:15.4]} 20... Rac8
{[%clk 0:01:40.3]} 21. axb5 {[%clk 0:02:13.4]} 21... axb5 {[%clk 0:01:41.2]} 22.
h5 {[%clk 0:02:12.4]} 22... Nb4 {[%clk 0:01:37.4]} 23. Re2 {[%clk 0:01:55.2]}
23... d3 {[%clk 0:01:25.8]} 24. Re3 {[%clk 0:01:51.9]} 24... Nc2 {[%clk
0:01:21.3]} 25. h6 {[%clk 0:01:51.5]} 25... Nxa1 {[%clk 0:01:18.3]} 26. hxg7
{[%clk 0:01:49.1]} 26... Rfd8 {[%clk 0:01:17.9]} 27. Qxa1 {[%clk 0:01:48.9]}
27... d2 {[%clk 0:01:11]} 28. Qd1 {[%clk 0:01:48.5]} 28... Qd4 {[%clk
0:01:09.7]} 29. Be4 {[%clk 0:01:48.3]} 29... f5 {[%clk 0:00:57.3]} 30. Bf3
{[%clk 0:01:43.7]} 30... Qxb2 {[%clk 0:00:55.2]} 31. Qf1 {[%clk 0:01:36.7]}
31... Qc1 {[%clk 0:00:52.2]} 32. Bd1 {[%clk 0:01:36.8]} 32... c3 {[%clk
0:00:46.9]} 33. Rxe6 {[%clk 0:01:36.5]} 33... c2 {[%clk 0:00:45]} 34. Qxb5
{[%clk 0:01:31.6]} 34... Qxd1+ {[%clk 0:00:44.1]} 35. Kh2 {[%clk 0:01:31.9]}
35... Qh5+ {[%clk 0:00:43.9]} 36. Kg3 {[%clk 0:01:31.7]} 36... Qg4+ {[%clk
0:00:40]} 0-1

[Event "*** Titled Tuesday Blitz"]
[Site "Chess.com"]
[Date "2020.04.28"]
[Round "2"]
[White "tgpgoat"]
[Black "Agent-JL"]
[Result "0-1"]
[WhiteElo "2197"]
[BlackElo "2436"]
[TimeControl "180+1"]
[EndTime "10:16:13 PDT"]
[Termination "Agent-JL won by resignation"]

1. e4 {[%clk 0:02:59.4]} 1... c5 {[%clk 0:03:00.1]} 2. Nf3 {[%clk 0:02:58.7]}
2... e6 {[%clk 0:03:00.4]} 3. d4 {[%clk 0:02:55.6]} 3... cxd4 {[%clk 0:03:01.3]}
4. Nxd4 {[%clk 0:02:55.4]} 4... Nc6 {[%clk 0:03:01.7]} 5. Nc3 {[%clk 0:02:55.4]}
5... Qc7 {[%clk 0:02:59.5]} 6. Be3 {[%clk 0:02:55.6]} 6... a6 {[%clk 0:02:59.9]}
7. Bd3 {[%clk 0:02:54.9]} 7... b5 {[%clk 0:03:00]} 8. O-O {[%clk 0:02:54.4]}
8... Bb7 {[%clk 0:02:59.8]} 9. Kh1 {[%clk 0:02:51.9]} 9... Nf6 {[%clk
0:02:59.5]} 10. f4 {[%clk 0:02:50.5]} 10... Na5 {[%clk 0:02:51.1]} 11. e5 {[%clk
0:02:49.1]} 11... Nd5 {[%clk 0:02:50.2]} 12. Nxd5 {[%clk 0:02:49]} 12... Bxd5
{[%clk 0:02:51.1]} 13. c3 {[%clk 0:02:15.1]} 13... Nc4 {[%clk 0:02:48.4]} 14.
Bc1 {[%clk 0:02:13.2]} 14... d6 {[%clk 0:02:41.5]} 15. exd6 {[%clk 0:02:09.2]}
15... Bxd6 {[%clk 0:02:42.4]} 16. Qg4 {[%clk 0:02:07.3]} 16... g6 {[%clk
0:02:33.6]} 17. f5 {[%clk 0:01:54.9]} 17... Ne5 {[%clk 0:02:22.1]} 18. Qg5
{[%clk 0:01:51.8]} 18... Nxd3 {[%clk 0:02:10.3]} 19. fxe6 {[%clk 0:01:18.4]}
19... fxe6 {[%clk 0:02:07.7]} 20. Qg4 {[%clk 0:00:51.9]} 20... O-O-O {[%clk
0:01:59.5]} 21. Bg5 {[%clk 0:00:49.8]} 21... Rde8 {[%clk 0:01:56.9]} 22. a4
{[%clk 0:00:43.9]} 22... Qb7 {[%clk 0:01:42.9]} 23. axb5 {[%clk 0:00:43.1]}
23... axb5 {[%clk 0:01:42.8]} 24. Ra5 {[%clk 0:00:42]} 24... Rhf8 {[%clk
0:01:40.4]} 25. Rxf8 {[%clk 0:00:29]} 25... Rxf8 {[%clk 0:01:39.6]} 26. Kg1
{[%clk 0:00:29.9]} 26... Qf7 {[%clk 0:01:25.2]} 27. Ra8+ {[%clk 0:00:23.1]}
27... Bxa8 {[%clk 0:01:24.4]} 0-1

[Event "*** Titled Tuesday Blitz"]
[Site "Chess.com"]
[Date "2020.04.28"]
[Round "2"]
[White "stanyga"]
[Black "AshotParvanyan"]
[Result "1-0"]
[WhiteElo "2700"]
[BlackElo "2470"]
[TimeControl "180+1"]
[EndTime "10:16:20 PDT"]
[Termination "stanyga won by resignation"]

1. e4 {[%clk 0:03:00.9]} 1... e6 {[%clk 0:02:59.8]} 2. d4 {[%clk 0:02:59.9]}
2... d5 {[%clk 0:02:59.8]} 3. e5 {[%clk 0:03:00.5]} 3... c5 {[%clk 0:02:59.2]}
4. c3 {[%clk 0:03:01.1]} 4... Nc6 {[%clk 0:02:59.5]} 5. Nf3 {[%clk 0:03:01.5]}
5... Bd7 {[%clk 0:02:59.3]} 6. Be2 {[%clk 0:02:58.5]} 6... Rc8 {[%clk
0:02:56.6]} 7. O-O {[%clk 0:02:55.2]} 7... Nge7 {[%clk 0:02:32.5]} 8. Re1 {[%clk
0:02:38.4]} 8... cxd4 {[%clk 0:02:24]} 9. cxd4 {[%clk 0:02:37]} 9... Nf5 {[%clk
0:02:24.5]} 10. Nc3 {[%clk 0:02:32.3]} 10... a6 {[%clk 0:02:24.9]} 11. Bd3
{[%clk 0:02:02.2]} 11... Nfxd4 {[%clk 0:01:52.1]} 12. Nxd4 {[%clk 0:02:03.1]}
12... Nxd4 {[%clk 0:01:52.9]} 13. Qg4 {[%clk 0:02:02.3]} 13... Nc6 {[%clk
0:01:34.6]} 14. Bg5 {[%clk 0:01:57.6]} 14... Qc7 {[%clk 0:00:58.3]} 15. Nxd5
{[%clk 0:01:57]} 15... exd5 {[%clk 0:00:55.7]} 16. e6 {[%clk 0:01:57.1]} 16...
Bxe6 {[%clk 0:00:48.2]} 17. Bf5 {[%clk 0:01:26.8]} 17... Ne5 {[%clk 0:00:37.3]}
18. Bxe6 {[%clk 0:01:26.5]} 18... Nxg4 {[%clk 0:00:25.5]} 19. Bxg4+ {[%clk
0:01:20.1]} 19... Be7 {[%clk 0:00:17.5]} 20. Bxe7 {[%clk 0:01:20]} 20... Qxe7
{[%clk 0:00:06.4]} 21. Bxc8 {[%clk 0:01:19.3]} 1-0

[Event "*** Titled Tuesday Blitz"]
[Site "Chess.com"]
[Date "2020.04.28"]
[Round "2"]
[White "Jaka_Brilej"]
[Black "TheMightyBishops"]
[Result "1-0"]
[WhiteElo "2369"]
[BlackElo "2000"]
[TimeControl "180+1"]
[EndTime "10:16:21 PDT"]
[Termination "Jaka_Brilej won by resignation"]

1. e4 {[%clk 0:02:59.3]} 1... d6 {[%clk 0:02:58.4]} 2. d4 {[%clk 0:02:57.3]}
2... Nf6 {[%clk 0:02:57.8]} 3. Nc3 {[%clk 0:02:56.6]} 3... Nbd7 {[%clk
0:02:58.2]} 4. f3 {[%clk 0:02:56.2]} 4... e5 {[%clk 0:02:57.8]} 5. Be3 {[%clk
0:02:55.9]} 5... Be7 {[%clk 0:02:57.8]} 6. Qd2 {[%clk 0:02:56.1]} 6... h6 {[%clk
0:02:57.6]} 7. Nge2 {[%clk 0:02:56.2]} 7... c6 {[%clk 0:02:47.3]} 8. O-O-O
{[%clk 0:02:55.7]} 8... b5 {[%clk 0:02:46.1]} 9. g4 {[%clk 0:02:52.1]} 9... b4
{[%clk 0:02:44.5]} 10. Nb1 {[%clk 0:02:51.7]} 10... Qa5 {[%clk 0:02:24.2]} 11.
a3 {[%clk 0:02:50.7]} 11... Rb8 {[%clk 0:02:24.1]} 12. Ng3 {[%clk 0:02:35.6]}
12... g6 {[%clk 0:02:16.7]} 13. Bc4 {[%clk 0:02:23.4]} 13... Qc7 {[%clk
0:02:05.8]} 14. axb4 {[%clk 0:02:22.2]} 14... Nb6 {[%clk 0:02:03.8]} 15. Bb3
{[%clk 0:02:21.6]} 15... Ra8 {[%clk 0:01:50]} 16. h4 {[%clk 0:02:16.1]} 16... a5
{[%clk 0:01:49.2]} 17. bxa5 {[%clk 0:02:15.7]} 17... Nbd7 {[%clk 0:01:41.4]} 18.
g5 {[%clk 0:02:15.4]} 18... Nh5 {[%clk 0:01:25.3]} 19. Nxh5 {[%clk 0:02:14.5]}
19... gxh5 {[%clk 0:01:25.1]} 20. gxh6 {[%clk 0:02:05.4]} 20... Rxa5 {[%clk
0:01:23.6]} 21. Bg5 {[%clk 0:01:57.1]} 21... f6 {[%clk 0:01:23.5]} 22. Be3
{[%clk 0:01:54]} 22... Qa7 {[%clk 0:01:16.9]} 23. dxe5 {[%clk 0:01:52.9]} 23...
Nxe5 {[%clk 0:01:11.8]} 24. Bxa7 {[%clk 0:01:51.7]} 24... Rxa7 {[%clk 0:01:10]}
25. f4 {[%clk 0:01:47.9]} 25... Nf3 {[%clk 0:01:07.3]} 26. Qe3 {[%clk
0:01:46.8]} 26... c5 {[%clk 0:01:00.6]} 27. Qxf3 {[%clk 0:01:46.3]} 27... Bg4
{[%clk 0:01:00.7]} 28. Qe3 {[%clk 0:01:42.9]} 28... Bf8 {[%clk 0:00:55.8]} 29.
Na3 {[%clk 0:01:29.9]} 29... Bxh6 {[%clk 0:00:54]} 30. Rxd6 {[%clk 0:01:28.4]}
30... Ke7 {[%clk 0:00:47.4]} 31. e5 {[%clk 0:01:25.4]} 31... fxe5 {[%clk
0:00:42.5]} 32. Qxe5+ {[%clk 0:01:24.4]} 1-0

[Event "*** Titled Tuesday Blitz"]
[Site "Chess.com"]
[Date "2020.04.28"]
[Round "2"]
[White "Riazantsev"]
[Black "atalz0"]
[Result "1-0"]
[WhiteElo "2683"]
[BlackElo "2425"]
[TimeControl "180+1"]
[EndTime "10:16:24 PDT"]
[Termination "Riazantsev won by resignation"]

1. d4 {[%clk 0:03:00.9]} 1... d5 {[%clk 0:03:00]} 2. c4 {[%clk 0:02:59.3]} 2...
e6 {[%clk 0:03:00.4]} 3. Nf3 {[%clk 0:02:46.8]} 3... a6 {[%clk 0:03:00.4]} 4. e3
{[%clk 0:02:44.5]} 4... Nf6 {[%clk 0:02:59.2]} 5. Nc3 {[%clk 0:02:44]} 5... Be7
{[%clk 0:02:58.6]} 6. Qc2 {[%clk 0:02:43.9]} 6... O-O {[%clk 0:02:56.4]} 7. b3
{[%clk 0:02:36.2]} 7... c5 {[%clk 0:02:42.8]} 8. cxd5 {[%clk 0:02:34.8]} 8...
exd5 {[%clk 0:02:39.9]} 9. Bb2 {[%clk 0:02:34]} 9... Nc6 {[%clk 0:02:35.5]} 10.
Rd1 {[%clk 0:02:32.6]} 10... Bg4 {[%clk 0:02:26.5]} 11. Be2 {[%clk 0:02:32.5]}
11... Bxf3 {[%clk 0:02:13]} 12. Bxf3 {[%clk 0:02:32.4]} 12... cxd4 {[%clk
0:02:13.7]} 13. exd4 {[%clk 0:02:32.5]} 13... Rc8 {[%clk 0:02:03.7]} 14. O-O
{[%clk 0:02:31]} 14... Qd7 {[%clk 0:02:03]} 15. Rfe1 {[%clk 0:02:19.6]} 15...
Rfd8 {[%clk 0:02:00.7]} 16. h3 {[%clk 0:02:17.1]} 16... h6 {[%clk 0:02:00.5]}
17. Qd3 {[%clk 0:02:14.1]} 17... Bd6 {[%clk 0:01:51.8]} 18. Kh1 {[%clk
0:02:06.7]} 18... Bb8 {[%clk 0:01:50.6]} 19. a3 {[%clk 0:02:03.6]} 19... Ne7
{[%clk 0:01:43.5]} 20. Na4 {[%clk 0:01:57]} 20... Qd6 {[%clk 0:01:36.7]} 21. g3
{[%clk 0:01:56.5]} 21... Ba7 {[%clk 0:01:13.9]} 22. b4 {[%clk 0:01:53.2]} 22...
a5 {[%clk 0:01:10.3]} 23. Nc5 {[%clk 0:01:52]} 23... b6 {[%clk 0:01:07.3]} 24.
Nb7 {[%clk 0:01:51]} 24... Qd7 {[%clk 0:01:03.9]} 25. Nxd8 {[%clk 0:01:51.2]}
25... Rxd8 {[%clk 0:01:02.6]} 26. Kg2 {[%clk 0:01:50.1]} 26... axb4 {[%clk
0:00:58.1]} 27. axb4 {[%clk 0:01:50]} 27... h5 {[%clk 0:00:54.8]} 28. h4 {[%clk
0:01:43.7]} 28... Ng6 {[%clk 0:00:53.3]} 29. Bc1 {[%clk 0:01:38.8]} 29... Rc8
{[%clk 0:00:47.6]} 30. Bg5 {[%clk 0:01:37.1]} 30... Qd6 {[%clk 0:00:45.5]} 31.
Qf5 {[%clk 0:01:31.7]} 31... Rc4 {[%clk 0:00:29.7]} 32. Bxf6 {[%clk 0:01:29.7]}
32... Qxf6 {[%clk 0:00:23.5]} 33. Qxf6 {[%clk 0:01:29]} 33... gxf6 {[%clk
0:00:24.4]} 34. b5 {[%clk 0:01:27.3]} 1-0

[Event "*** Titled Tuesday Blitz"]
[Site "Chess.com"]
[Date "2020.04.28"]
[Round "2"]
[White "ulkaf961"]
[Black "FelixJoseYnojosa"]
[Result "0-1"]
[WhiteElo "2183"]
[BlackElo "2616"]
[TimeControl "180+1"]
[EndTime "10:16:24 PDT"]
[Termination "FelixJoseYnojosa won by resignation"]

1. e4 {[%clk 0:03:00.9]} 1... c5 {[%clk 0:03:00]} 2. Nf3 {[%clk 0:03:00.9]} 2...
Nc6 {[%clk 0:03:00.7]} 3. Bb5 {[%clk 0:03:00.6]} 3... e6 {[%clk 0:03:01.1]} 4.
O-O {[%clk 0:02:49.5]} 4... Nge7 {[%clk 0:03:01.5]} 5. c3 {[%clk 0:02:46.9]}
5... a6 {[%clk 0:03:00.9]} 6. Bd3 {[%clk 0:02:46.6]} 6... d5 {[%clk 0:03:01]} 7.
Re1 {[%clk 0:02:26.4]} 7... d4 {[%clk 0:02:59.8]} 8. a4 {[%clk 0:02:20.6]} 8...
Ng6 {[%clk 0:02:59.6]} 9. Bf1 {[%clk 0:02:18.7]} 9... d3 {[%clk 0:02:58.8]} 10.
b3 {[%clk 0:02:02.6]} 10... Rb8 {[%clk 0:02:32.4]} 11. Re3 {[%clk 0:01:46.8]}
11... Nce5 {[%clk 0:02:32.6]} 12. Nxe5 {[%clk 0:01:46.4]} 12... Nxe5 {[%clk
0:02:33.3]} 13. f4 {[%clk 0:01:45.2]} 13... Ng6 {[%clk 0:02:32.6]} 14. Rxd3
{[%clk 0:01:39.7]} 14... Qb6 {[%clk 0:02:33.2]} 15. c4 {[%clk 0:01:24.6]} 15...
Nxf4 {[%clk 0:02:33]} 16. Rf3 {[%clk 0:01:24.2]} 16... e5 {[%clk 0:02:33.4]} 17.
Bb2 {[%clk 0:01:24.3]} 17... Bd6 {[%clk 0:02:28.9]} 18. Rg3 {[%clk 0:01:18.9]}
18... O-O {[%clk 0:02:28.5]} 19. Nc3 {[%clk 0:01:18.5]} 19... Be6 {[%clk
0:02:26.8]} 20. Nd5 {[%clk 0:00:58.9]} 20... Bxd5 {[%clk 0:02:26.5]} 21. exd5
{[%clk 0:00:48]} 21... f5 {[%clk 0:02:26.3]} 22. Re3 {[%clk 0:00:44.6]} 22...
Rbe8 {[%clk 0:02:26.1]} 23. Qe1 {[%clk 0:00:44.1]} 23... e4 {[%clk 0:02:24.1]}
24. g3 {[%clk 0:00:41.8]} 24... Ng6 {[%clk 0:02:23.3]} 25. d3 {[%clk 0:00:41.5]}
25... Qxb3 {[%clk 0:02:22.7]} 26. Rb1 {[%clk 0:00:37.7]} 26... Qxa4 {[%clk
0:02:22.3]} 27. dxe4 {[%clk 0:00:36.4]} 27... f4 {[%clk 0:02:21.6]} 28. Ra3
{[%clk 0:00:34.2]} 28... Qd7 {[%clk 0:02:20.1]} 29. Qd2 {[%clk 0:00:21.3]} 29...
fxg3 {[%clk 0:02:19.7]} 30. hxg3 {[%clk 0:00:20]} 30... Rxe4 {[%clk 0:02:18.9]}
31. Bd3 {[%clk 0:00:20.1]} 31... Rg4 {[%clk 0:02:19.1]} 32. Qh2 {[%clk
0:00:18.8]} 32... Rf3 {[%clk 0:02:14.4]} 33. Bxg6 {[%clk 0:00:16.8]} 33...
Rgxg3+ {[%clk 0:02:14.1]} 34. Qxg3 {[%clk 0:00:12.7]} 34... Rxg3+ {[%clk
0:02:14.1]} 35. Rxg3 {[%clk 0:00:12.8]} 35... Bxg3 {[%clk 0:02:14.8]} 36. Be4
{[%clk 0:00:10]} 36... Qh3 {[%clk 0:02:12.7]} 37. Bg2 {[%clk 0:00:08.4]} 37...
Bh2+ {[%clk 0:02:10.8]} 38. Kh1 {[%clk 0:00:07.2]} 38... Qh5 {[%clk 0:02:10.2]}
39. Ba3 {[%clk 0:00:02.2]} 39... Be5+ {[%clk 0:02:09.8]} 40. Kg1 {[%clk
0:00:02.3]} 40... Bd4+ {[%clk 0:02:10.2]} 41. Kf1 {[%clk 0:00:02.5]} 41... Qf5+
{[%clk 0:02:10.7]} 0-1

[Event "*** Titled Tuesday Blitz"]
[Site "Chess.com"]
[Date "2020.04.28"]
[Round "2"]
[White "albano87"]
[Black "cukin84"]
[Result "1-0"]
[WhiteElo "2388"]
[BlackElo "2076"]
[TimeControl "180+1"]
[EndTime "10:16:26 PDT"]
[Termination "albano87 won by resignation"]

1. e4 {[%clk 0:02:57.5]} 1... c6 {[%clk 0:02:59.3]} 2. d4 {[%clk 0:02:55.1]}
2... d5 {[%clk 0:02:59.4]} 3. Nc3 {[%clk 0:02:54.8]} 3... a6 {[%clk 0:02:58.9]}
4. Bd3 {[%clk 0:02:53.3]} 4... dxe4 {[%clk 0:02:56.9]} 5. Bxe4 {[%clk
0:02:51.8]} 5... Nf6 {[%clk 0:02:55.9]} 6. Bf3 {[%clk 0:02:52]} 6... Bf5 {[%clk
0:02:55.3]} 7. Nge2 {[%clk 0:02:52]} 7... e6 {[%clk 0:02:54.6]} 8. Ng3 {[%clk
0:02:52.1]} 8... Bg6 {[%clk 0:02:53.8]} 9. h4 {[%clk 0:02:52.2]} 9... h5 {[%clk
0:02:47.8]} 10. Bg5 {[%clk 0:02:50.8]} 10... Be7 {[%clk 0:02:44.7]} 11. Qe2
{[%clk 0:02:49.5]} 11... Nbd7 {[%clk 0:02:44]} 12. O-O-O {[%clk 0:02:49.6]}
12... Qa5 {[%clk 0:02:42.2]} 13. Kb1 {[%clk 0:02:48.9]} 13... O-O-O {[%clk
0:02:41]} 14. Nce4 {[%clk 0:02:44.9]} 14... Qb5 {[%clk 0:02:27.6]} 15. Rd3
{[%clk 0:02:40.1]} 15... Rhe8 {[%clk 0:02:12.3]} 16. Rhd1 {[%clk 0:02:33.7]}
16... Nd5 {[%clk 0:02:07.9]} 17. Bxe7 {[%clk 0:02:31.2]} 17... Rxe7 {[%clk
0:02:05.9]} 18. Qd2 {[%clk 0:02:28.7]} 18... Bxe4 {[%clk 0:01:58.5]} 19. Nxe4
{[%clk 0:02:28.2]} 19... N7f6 {[%clk 0:01:57.6]} 20. Nc5 {[%clk 0:02:26.4]}
20... Nb4 {[%clk 0:01:49.1]} 21. Rb3 {[%clk 0:02:24.7]} 21... a5 {[%clk
0:01:32.6]} 22. a3 {[%clk 0:02:23]} 22... e5 {[%clk 0:01:28]} 23. axb4 {[%clk
0:02:16.4]} 23... Rxd4 {[%clk 0:01:27.2]} 24. Qe1 {[%clk 0:02:12.2]} 24... axb4
{[%clk 0:01:24.7]} 25. Rxd4 {[%clk 0:02:09.4]} 25... Qxc5 {[%clk 0:01:21.2]} 26.
Rdxb4 {[%clk 0:02:08.4]} 26... e4 {[%clk 0:01:17.9]} 27. Be2 {[%clk 0:02:01.2]}
27... Nd5 {[%clk 0:01:16.9]} 28. Rc4 {[%clk 0:01:55.6]} 28... Qa7 {[%clk
0:01:09.4]} 29. Bxh5 {[%clk 0:01:51.2]} 29... g6 {[%clk 0:01:05.9]} 30. Bd1
{[%clk 0:01:38.6]} 30... f5 {[%clk 0:01:03.7]} 31. h5 {[%clk 0:01:36.9]} 31...
gxh5 {[%clk 0:01:01.3]} 32. Bxh5 {[%clk 0:01:35.5]} 32... Rh7 {[%clk 0:01:00.7]}
33. Bg6 {[%clk 0:01:32.7]} 33... Rh8 {[%clk 0:00:51.3]} 34. Bxf5+ {[%clk
0:01:31.1]} 34... Kc7 {[%clk 0:00:51.5]} 35. Bxe4 {[%clk 0:01:27.1]} 1-0

[Event "*** Titled Tuesday Blitz"]
[Site "Chess.com"]
[Date "2020.04.28"]
[Round "2"]
[White "kleopl"]
[Black "praveenb2002"]
[Result "0-1"]
[WhiteElo "2480"]
[BlackElo "2715"]
[TimeControl "180+1"]
[EndTime "10:16:27 PDT"]
[Termination "praveenb2002 won by resignation"]

1. c4 {[%clk 0:03:00.9]} 1... e5 {[%clk 0:02:58.8]} 2. Nc3 {[%clk 0:03:00.2]}
2... Bb4 {[%clk 0:02:57.6]} 3. Nd5 {[%clk 0:02:59.7]} 3... Bc5 {[%clk
0:02:57.3]} 4. Nf3 {[%clk 0:02:58.9]} 4... c6 {[%clk 0:02:54.4]} 5. Nc3 {[%clk
0:02:57.5]} 5... Qe7 {[%clk 0:02:55.1]} 6. e3 {[%clk 0:02:53.9]} 6... d6 {[%clk
0:02:42.5]} 7. Be2 {[%clk 0:02:52.8]} 7... e4 {[%clk 0:02:38.4]} 8. Nd4 {[%clk
0:02:49.6]} 8... Nf6 {[%clk 0:02:38.7]} 9. O-O {[%clk 0:02:46.6]} 9... O-O
{[%clk 0:02:37.9]} 10. Rb1 {[%clk 0:02:45.5]} 10... d5 {[%clk 0:02:37.1]} 11.
cxd5 {[%clk 0:02:41.3]} 11... cxd5 {[%clk 0:02:36.4]} 12. d3 {[%clk 0:02:38.7]}
12... Rd8 {[%clk 0:02:34.3]} 13. a3 {[%clk 0:02:37.9]} 13... Nc6 {[%clk
0:02:27.3]} 14. Nxc6 {[%clk 0:02:32.6]} 14... bxc6 {[%clk 0:02:28.2]} 15. b4
{[%clk 0:02:29.1]} 15... Bd6 {[%clk 0:02:24.4]} 16. Bb2 {[%clk 0:02:17.3]} 16...
exd3 {[%clk 0:02:20.7]} 17. Qxd3 {[%clk 0:02:09.2]} 17... Qe5 {[%clk 0:02:14.7]}
18. f4 {[%clk 0:02:02]} 18... Qe7 {[%clk 0:02:13.6]} 19. Rbc1 {[%clk 0:01:53.4]}
19... a5 {[%clk 0:02:02.1]} 20. b5 {[%clk 0:01:46.7]} 20... Bc5 {[%clk
0:02:02.3]} 21. Nd1 {[%clk 0:01:42.8]} 21... cxb5 {[%clk 0:01:53.6]} 22. Bxf6
{[%clk 0:01:39.2]} 22... gxf6 {[%clk 0:01:54.5]} 23. Qxb5 {[%clk 0:01:32.6]}
23... Bxe3+ {[%clk 0:01:32.6]} 24. Nxe3 {[%clk 0:01:33.5]} 24... Qxe3+ {[%clk
0:01:33.1]} 25. Kh1 {[%clk 0:01:29]} 25... Ba6 {[%clk 0:01:33.2]} 26. Qb2 {[%clk
0:01:07.7]} 26... Qxe2 {[%clk 0:01:25.4]} 27. Qxf6 {[%clk 0:01:07.4]} 27... Qe6
{[%clk 0:01:26]} 28. Qh4 {[%clk 0:00:52.4]} 28... Bxf1 {[%clk 0:01:24.9]} 29.
Rxf1 {[%clk 0:00:53.3]} 29... f5 {[%clk 0:01:10.8]} 30. Re1 {[%clk 0:00:51.7]}
30... Qg6 {[%clk 0:01:01.5]} 31. h3 {[%clk 0:00:47.4]} 31... Re8 {[%clk
0:00:59.6]} 0-1

[Event "*** Titled Tuesday Blitz"]
[Site "Chess.com"]
[Date "2020.04.28"]
[Round "2"]
[White "Malev212"]
[Black "Sashadav97"]
[Result "0-1"]
[WhiteElo "2498"]
[BlackElo "2749"]
[TimeControl "180+1"]
[EndTime "10:16:28 PDT"]
[Termination "Sashadav97 won by resignation"]

1. d4 {[%clk 0:03:00.9]} 1... d5 {[%clk 0:02:59.7]} 2. Nc3 {[%clk 0:02:57.8]}
2... Nf6 {[%clk 0:02:55.8]} 3. Bg5 {[%clk 0:02:56.9]} 3... h6 {[%clk 0:02:54.2]}
4. Bh4 {[%clk 0:02:52.8]} 4... Nbd7 {[%clk 0:02:51.9]} 5. f3 {[%clk 0:02:45.7]}
5... c5 {[%clk 0:02:47.4]} 6. dxc5 {[%clk 0:02:26.4]} 6... e6 {[%clk 0:02:38.5]}
7. b4 {[%clk 0:02:01.5]} 7... b6 {[%clk 0:02:29]} 8. e4 {[%clk 0:01:48.8]} 8...
bxc5 {[%clk 0:02:27.8]} 9. exd5 {[%clk 0:01:47.9]} 9... cxb4 {[%clk 0:02:27.8]}
10. Nb5 {[%clk 0:01:31.8]} 10... Bc5 {[%clk 0:02:08.8]} 11. dxe6 {[%clk
0:01:30]} 11... O-O {[%clk 0:01:46.5]} 12. exd7 {[%clk 0:00:50.9]} 12... Bxd7
{[%clk 0:01:45.8]} 13. Bd3 {[%clk 0:00:36.9]} 13... a6 {[%clk 0:01:27]} 14. Nd6
{[%clk 0:00:32.3]} 14... Bxd6 {[%clk 0:01:18.4]} 15. Bh7+ {[%clk 0:00:31.5]}
15... Kxh7 {[%clk 0:01:16.1]} 16. Qxd6 {[%clk 0:00:32.4]} 16... Re8+ {[%clk
0:01:15]} 17. Kd1 {[%clk 0:00:19.8]} 17... Bf5 {[%clk 0:00:57.2]} 18. Qxd8
{[%clk 0:00:11.2]} 18... Raxd8+ {[%clk 0:00:58.1]} 19. Kc1 {[%clk 0:00:10.8]}
19... Rc8 {[%clk 0:00:58.6]} 0-1

[Event "*** Titled Tuesday Blitz"]
[Site "Chess.com"]
[Date "2020.04.28"]
[Round "2"]
[White "Chepaschess"]
[Black "frankshar"]
[Result "1-0"]
[WhiteElo "2634"]
[BlackElo "2266"]
[TimeControl "180+1"]
[EndTime "10:16:30 PDT"]
[Termination "Chepaschess won by resignation"]

1. d4 {[%clk 0:03:00.9]} 1... Nf6 {[%clk 0:02:58.2]} 2. c4 {[%clk 0:03:00.7]}
2... e6 {[%clk 0:02:58.1]} 3. Nf3 {[%clk 0:03:00.8]} 3... d5 {[%clk 0:02:57.6]}
4. g3 {[%clk 0:03:00.7]} 4... dxc4 {[%clk 0:02:56.9]} 5. Bg2 {[%clk 0:03:00.7]}
5... Bb4+ {[%clk 0:02:56.5]} 6. Bd2 {[%clk 0:03:00.4]} 6... c5 {[%clk
0:02:56.1]} 7. Bxb4 {[%clk 0:02:49.9]} 7... cxb4 {[%clk 0:02:55.8]} 8. Ne5
{[%clk 0:02:49.4]} 8... O-O {[%clk 0:02:53]} 9. O-O {[%clk 0:02:45]} 9... Nc6
{[%clk 0:02:36.5]} 10. Bxc6 {[%clk 0:02:31.9]} 10... bxc6 {[%clk 0:02:34.6]} 11.
a3 {[%clk 0:02:32.7]} 11... c5 {[%clk 0:01:58.4]} 12. dxc5 {[%clk 0:02:30]}
12... Qc7 {[%clk 0:01:54.6]} 13. Qd6 {[%clk 0:02:26]} 13... Qxd6 {[%clk
0:01:53.8]} 14. cxd6 {[%clk 0:02:26.9]} 14... Rd8 {[%clk 0:01:36.6]} 15. axb4
{[%clk 0:02:10]} 15... Rxd6 {[%clk 0:01:31.9]} 16. Nxc4 {[%clk 0:02:05.6]} 16...
Rc6 {[%clk 0:01:26.5]} 17. Nba3 {[%clk 0:02:00.5]} 17... Rb8 {[%clk 0:01:18.5]}
18. Rfd1 {[%clk 0:01:57.7]} 18... Kf8 {[%clk 0:01:03.8]} 19. b5 {[%clk
0:01:54.6]} 19... Rc5 {[%clk 0:01:02.3]} 20. Rac1 {[%clk 0:01:46]} 20... Bd7
{[%clk 0:00:51]} 21. b4 {[%clk 0:01:35.9]} 21... Rc7 {[%clk 0:00:37.3]} 22. Nb6
{[%clk 0:01:29]} 22... Rxc1 {[%clk 0:00:32]} 23. Nxd7+ {[%clk 0:01:29.1]} 23...
Nxd7 {[%clk 0:00:32.9]} 24. Rxc1 {[%clk 0:01:29.6]} 24... Ke7 {[%clk 0:00:32.4]}
25. Rc7 {[%clk 0:01:29.6]} 25... Ra8 {[%clk 0:00:30.7]} 26. Nc4 {[%clk
0:01:29.4]} 26... f6 {[%clk 0:00:25.1]} 27. b6 {[%clk 0:01:25.2]} 27... a6
{[%clk 0:00:19.2]} 28. b7 {[%clk 0:01:21.6]} 28... Rb8 {[%clk 0:00:18.5]} 29.
Na5 {[%clk 0:01:21.9]} 29... Kd8 {[%clk 0:00:17.7]} 30. Rc6 {[%clk 0:01:19.4]}
30... Ke7 {[%clk 0:00:17.2]} 31. Rxa6 {[%clk 0:01:18.4]} 1-0